fUSD/lending_fUSD_20251211
["ID","MTS","AMOUNT","RATE_DAILY","PERIOD"]
[398173536,1765416652937,-567.0,0.00028372,2]
[398173537,1765416652946,-151.5,0.00028411,2]
[398173538,1765416652957,-200.05630371,0.00028411,2]
[398173539,1765416652977,-567.0,0.00028427,2]
[398173540,1765416652986,-567.0,0.00028482,2]
[398173541,1765416652996,-1543.62,0.00028511,2]
[398173542,1765416653006,-1568.3,0.00028511,5]
[398173543,1765416653015,-150.99,0.00028511,2]
[398173544,1765416653024,-150.99,0.00028511,2]
[398173545,1765416653035,-999.99,0.00028511,2]
[398173546,1765416653045,-1358.78,0.00028511,2]
[398173547,1765416653055,-172975.63,0.00028511,10]
[398173548,1765416653066,-150.08,0.00028511,2]
[398173549,1765416653075,-150.75,0.00028511,2]
[398173550,1765416653085,-151.34,0.00028511,2]
[398173551,1765416653095,-151.88,0.00028511,2]
[398173552,1765416653110,-500.0,0.00028532,2]
[398173553,1765416653120,-200.0,0.00028532,2]
[398173554,1765416653130,-151.0,0.00028532,2]
[398173555,1765416653140,-1000.0,0.00028532,2]
[398173556,1765416653151,-500.0,0.00028532,2]
[398173557,1765416653161,-500.0,0.00028532,2]
[398173558,1765416653171,-1000.0,0.00028532,2]
[398173559,1765416653181,-500.0,0.00028532,2]
[398173560,1765416653192,-500.0,0.00028532,2]
[398173561,1765416653201,-1000.0,0.00028532,2]
[398173562,1765416653211,-500.0,0.00028532,2]
[398173563,1765416653220,-500.0,0.00028532,2]
[398173564,1765416653231,-500.0,0.00028532,2]
[398173565,1765416653241,-500.0,0.00028532,2]
[398173566,1765416653250,-574.12855637,0.00028532,2]
[398173567,1765416653260,-1000.0,0.00028532,2]
[398173568,1765416653269,-500.0,0.00028532,2]
[398173569,1765416653279,-500.0,0.00028532,2]
[398173570,1765416653290,-1000.0,0.00028532,2]
[398173571,1765416653300,-500.0,0.00028532,2]
[398173572,1765416653316,-1000.0,0.00028532,2]
[398173573,1765416653326,-1000.0,0.00028532,2]
[398173574,1765416653335,-500.0,0.00028532,2]
[398173575,1765416653344,-1000.0,0.00028532,2]
[398173576,1765416653355,-200.0,0.00028532,2]
[398173577,1765416653364,-500.0,0.00028532,2]
[398173578,1765416653374,-1000.0,0.00028532,2]
[398173579,1765416653384,-151.0,0.00028532,2]
[398173580,1765416653394,-336.88727263,0.00028532,2]
[398173581,1765416653403,-1000.0,0.00028532,2]
[398173582,1765416653413,-500.0,0.00028532,2]
[398173583,1765416653422,-151.0,0.00028532,2]
[398173584,1765416653432,-1000.0,0.00028532,2]
[398173585,1765416653441,-151.0,0.00028532,2]
[398173586,1765416653451,-500.0,0.00028532,2]
[398173587,1765416653460,-500.0,0.00028532,2]
[398173588,1765416653470,-151.0,0.00028532,2]
[398173589,1765416653480,-500.0,0.00028532,2]
[398173590,1765416653489,-151.0,0.00028532,2]
[398173591,1765416653499,-500.0,0.00028532,2]
[398173592,1765416653509,-151.0,0.00028532,2]
[398173593,1765416653519,-200.0,0.00028532,2]
[398173594,1765416653530,-500.0,0.00028532,2]
[398173595,1765416653539,-500.0,0.00028532,2]
[398173596,1765416653549,-151.0,0.00028532,2]
[398173597,1765416653559,-500.0,0.00028532,2]
[398173598,1765416653569,-151.0,0.00028532,2]
[398173599,1765416653578,-500.0,0.00028532,2]
[398173600,1765416653588,-151.0,0.00028532,2]
[398173601,1765416653598,-500.0,0.00028532,2]
[398173602,1765416653608,-151.0,0.00028532,2]
[398173603,1765416653620,-500.0,0.00028532,2]
[398173604,1765416653630,-151.0,0.00028532,2]
[398173605,1765416653639,-500.0,0.00028532,2]
[398173606,1765416653649,-151.0,0.00028532,2]
[398173607,1765416653659,-151.0,0.00028532,2]
[398173608,1765416653669,-1000.0,0.00028532,2]
[398173609,1765416653678,-500.0,0.00028532,2]
[398173610,1765416653688,-151.0,0.00028532,2]
[398173611,1765416653698,-1000.0,0.00028532,2]
[398173612,1765416653708,-1000.0,0.00028532,2]
[398173613,1765416653718,-151.0,0.00028532,2]
[398173614,1765416653727,-500.0,0.00028532,2]
[398173615,1765416653736,-1000.0,0.00028532,2]
[398173616,1765416653746,-151.0,0.00028532,2]
[398173617,1765416653755,-500.0,0.00028532,2]
[398173618,1765416653765,-1000.0,0.00028532,2]
[398173619,1765416653775,-500.0,0.00028532,2]
[398173620,1765416653784,-151.0,0.00028532,2]
[398173621,1765416653794,-1000.0,0.00028532,2]
[398173622,1765416653803,-500.0,0.00028532,2]
[398173623,1765416653813,-151.0,0.00028532,2]
[398173624,1765416653822,-1000.0,0.00028532,2]
[398173625,1765416653831,-500.0,0.00028532,2]
[398173626,1765416653841,-151.0,0.00028532,2]
[398173627,1765416653850,-1000.0,0.00028532,2]
[398173628,1765416653860,-500.0,0.00028532,2]
[398173629,1765416653871,-500.0,0.00028532,2]
[398173630,1765416653881,-151.0,0.00028532,2]
[398173631,1765416653890,-500.0,0.00028532,2]
[398173632,1765416653901,-607.04284567,0.00028532,2]
[398173633,1765416653912,-500.0,0.00028532,2]
[398173634,1765416653921,-500.0,0.00028532,2]
[398173635,1765416653931,-500.0,0.00028532,2]
[398173636,1765416653941,-500.0,0.00028532,2]
[398173637,1765416653951,-500.0,0.00028532,2]
[398173638,1765416653961,-500.0,0.00028532,2]
[398173639,1765416653970,-500.0,0.00028532,2]
[398173640,1765416653980,-500.0,0.00028532,2]
[398173641,1765416653990,-500.0,0.00028532,2]
[398173642,1765416653999,-500.0,0.00028532,2]
[398173643,1765416654009,-500.0,0.00028532,2]
[398173644,1765416654019,-250.0,0.00028532,2]
[398173645,1765416654028,-500.0,0.00028532,2]
[398173646,1765416654038,-250.0,0.00028532,2]
[398173647,1765416654048,-500.0,0.00028532,2]
[398173648,1765416654058,-250.0,0.00028532,2]
[398173649,1765416654069,-500.0,0.00028532,2]
[398173650,1765416654079,-500.0,0.00028532,2]
[398173651,1765416654088,-250.0,0.00028532,2]
[398173652,1765416654100,-151.0,0.00028532,2]
[398173653,1765416654113,-500.0,0.00028532,2]
[398173654,1765416654125,-250.0,0.00028532,2]
[398173655,1765416654135,-250.0,0.00028532,2]
[398173656,1765416654144,-151.0,0.00028532,2]
[398173657,1765416654155,-250.0,0.00028532,2]
[398173658,1765416654167,-250.0,0.00028532,2]
[398173659,1765416654178,-544.08822076,0.00028532,2]
[398173660,1765416654189,-250.0,0.00028532,2]
[398173661,1765416654199,-151.0,0.00028532,2]
[398173662,1765416654210,-151.0,0.00028532,2]
[398173663,1765416654220,-250.0,0.00028532,2]
[398173664,1765416654230,-250.0,0.00028532,2]
[398173665,1765416654240,-151.0,0.00028532,2]
[398173666,1765416654250,-250.0,0.00028532,2]
[398173667,1765416654259,-151.0,0.00028532,2]
[398173668,1765416654269,-250.0,0.00028532,2]
[398173669,1765416654279,-250.0,0.00028532,2]
[398173670,1765416654294,-151.0,0.00028532,2]
[398173671,1765416654304,-250.0,0.00028532,2]
[398173672,1765416654315,-250.0,0.00028532,2]
[398173673,1765416654325,-250.0,0.00028532,2]
[398173674,1765416654335,-151.0,0.00028532,2]
[398173675,1765416654344,-250.0,0.00028532,2]
[398173676,1765416654354,-250.0,0.00028532,2]
[398173677,1765416654363,-250.0,0.00028532,2]
[398173678,1765416654375,-151.0,0.00028532,2]
[398173679,1765416654385,-250.0,0.00028532,2]
[398173680,1765416654395,-250.0,0.00028532,2]
[398173681,1765416654530,-151.0,0.00028532,2]
[398173682,1765416654540,-391.89228042,0.00028532,2]
[398173683,1765416654550,-250.0,0.00028532,2]
[398173684,1765416654559,-151.0,0.00028532,2]
[398173685,1765416654570,-250.0,0.00028532,2]
[398173686,1765416654579,-151.0,0.00028532,2]
[398173687,1765416654589,-567.0,0.00028537,2]
[398173688,1765416654598,-346.27,0.00028549,2]
[398173689,1765416654607,-9999.99,0.00028549,2]
[398173690,1765416654617,-6895.46,0.00028549,2]
[398173691,1765416654627,-9999.99,0.00028549,2]
[398173692,1765416654636,-299.99,0.00028549,12]
[398173693,1765416654646,-567.0,0.00028592,2]
[398173694,1765416654656,-150.51,0.00028611,2]
[398173695,1765416654667,-150.37,0.00028611,2]
[398173696,1765416654676,-152.4,0.00028624,2]
[398173697,1765416654686,-567.0,0.00028647,2]
[398173698,1765416654696,-150.4,0.00028683,2]
[398173699,1765416654706,-150.86,0.00028683,2]
[398173700,1765416654715,-567.0,0.00028702,2]
[398173701,1765416654724,-151.0,0.00028755,2]
[398173702,1765416654735,-151.0,0.00028755,2]
[398173703,1765416654744,-567.0,0.00028757,2]
[398173704,1765416654754,-397.68,0.00028759,2]
[398173705,1765416654763,-623.36,0.000288,7]
[398173706,1765416654773,-151.56,0.00028956,2]
[398173707,1765416654783,-300.0,0.00028956,2]
[398173708,1765416654792,-1750.0,0.00029,2]
[398173709,1765416654801,-595.37131296,0.0002908,2]
[398173710,1765416654810,-200.0,0.0002908,2]
[398173711,1765416654819,-200.0,0.0002908,2]
[398173712,1765416654829,-500.0,0.0002908,2]
[398173713,1765416654839,-151.0,0.0002908,2]
[398173714,1765416654849,-153.01637236,0.00029303,2]
[398173715,1765416654860,-151.0,0.00029303,2]
[398173716,1765416654873,-311.1,0.00029576,2]
[398173717,1765416654884,-287.61899177,0.00029576,2]
[398173718,1765416654895,-179.08647054,0.00029589,5]
[398173719,1765416654906,-617.40005154,0.00029628,2]
[398173720,1765416654917,-200.0,0.00029628,2]
[398173721,1765416654928,-200.0,0.00029628,2]
[398173722,1765416654938,-500.0,0.00029628,2]
[398173723,1765416654949,-161.06626762,0.00029628,2]
[398173724,1765416654960,-1703.50637666,0.00029639,2]
[398173725,1765416654970,-578.20924308,0.00029705,2]
[398173726,1765416654980,-151.0,0.00029851,2]
[398173727,1765416654991,-151.0,0.00029901,2]
[398173728,1765416655001,-500.0,0.00029973,7]
[398173729,1765416655011,-397.68,0.00030129,2]
[398173730,1765416655022,-640.24385345,0.00030176,2]
[398173731,1765416655031,-200.0,0.00030176,2]
[398173732,1765416655041,-280.73810332,0.00030176,2]
[398173733,1765416655051,-500.0,0.00030176,2]
[398173734,1765416655062,-691.61,0.000302,30]
[398173735,1765416655071,-151.0,0.00030399,2]
[398173736,1765416655081,-663.93287602,0.00030724,2]
[398173737,1765416655092,-200.0,0.00030724,2]
[398173738,1765416655103,-500.0,0.00030724,2]
[398173739,1765416655115,-322.6107,0.00030945,2]
[398173740,1765416655128,-298.26089446,0.00030945,2]
[398173741,1765416655139,-151.0,0.00030947,2]
[398173742,1765416655150,-1750.0,0.00031,2]
[398173743,1765416655160,-207.4,0.00031271,2]
[398173744,1765416655171,-688.49839244,0.00031272,2]
[398173745,1765416655182,-200.0,0.00031272,2]
[398173746,1765416655193,-627.04271784,0.00031272,2]
[398173747,1765416655203,-151.0,0.00031495,2]
[398173748,1765416655213,-956.13133032,0.00031701,2]
[398173749,1765416655223,-713.97283296,0.0003182,2]
[398173750,1765416655234,-152.56104171,0.00032132,18]
[398173751,1765416655243,-334.5472959,0.00032314,2]
[398173752,1765416655252,-309.29654756,0.00032314,2]
[398173753,1765416655262,-740.38982778,0.00032368,2]
[398173754,1765416655272,-500.0,0.00032877,7]
[398173755,1765416655283,-500.0,0.00032877,7]
[398173756,1765416655293,-500.0,0.00032877,7]
[398173757,1765416655303,-500.0,0.00032877,7]
[398173758,1765416655312,-500.0,0.00032877,7]
[398173759,1765416655323,-433.60520103,0.00032877,7]
[398173760,1765416655333,-165.52,0.000329,14]
[398173761,1765416655343,-767.7842514,0.00032916,2]
[398173762,1765416655352,-1820.0,0.00032995,7]
[398173763,1765416655361,-1750.00001,0.00033,2]
[398173764,1765416655372,-1820.0,0.00033298,7]
[398173765,1765416655382,-23457.98,0.00033322,2]
[398173766,1765416655391,-641.64,0.000334,2]
[398173767,1765416655401,-858.4676747,0.00033464,2]
[398173768,1765416655410,-346.92554585,0.00033683,2]
[398173769,1765416655419,-320.74051982,0.00033683,2]
[398173770,1765416655428,-324.0,0.00033958,2]
[398173771,1765416655438,-198.81804892,0.00033971,2]
[398173772,1765416655447,-215.0738,0.0003401,2]
[398173773,1765416655458,-324.0,0.00034136,2]
[398173774,1765416655467,-3865.0,0.00034233,2]
[398173775,1765416655477,-3865.0,0.00034258,120]
[398173776,1765416655486,-2906.78,0.00034509,2]
[398173777,1765416655495,-324.0,0.00034572,2]
[398173778,1765416655505,-172.79025619,0.00034577,2]
[398173779,1765416655514,-623.36,0.000346,14]
[398173780,1765416655523,-5000.0,0.00034614,2]
[398173781,1765416655533,-324.0,0.00034826,2]
[398173782,1765416655542,-2431.092,0.00034946,40]
[398173783,1765416655552,-1750.0,0.00035,2]
[398173784,1765416655564,-598.0,0.0003504,120]
[398173785,1765416655582,-359.76179104,0.00035052,2]
[398173786,1765416655597,-332.60791905,0.00035052,2]
[398173787,1765416655611,-168.0,0.00035146,2]
[398173788,1765416655626,-168.0,0.0003545,2]
[398173789,1765416655642,-1154.08,0.0003545,5]
[398173790,1765416655658,-691.61,0.000355,30]
[398173791,1765416655670,-250.0,0.00035561,2]
[398173792,1765416655685,-165.52,0.000356,14]
[398173793,1765416655700,-500.0,0.00035616,2]
[398173794,1765416655715,-500.0,0.00035616,2]
[398173795,1765416655730,-500.0,0.00035616,2]
[398173796,1765416655744,-500.0,0.00035616,2]
[398173797,1765416655758,-500.0,0.00035616,2]
[398173798,1765416655774,-500.0,0.00035616,2]
[398173799,1765416655788,-500.0,0.00035616,2]
[398173800,1765416655802,-500.0,0.00035616,2]
[398173801,1765416655816,-598.0,0.00035631,7]
[398173802,1765416655832,-282.203487,0.00035759,2]
[398173803,1765416655847,-641.64,0.000358,2]
[398173804,1765416655860,-1600.0,0.00035955,120]
[398173805,1765416655874,-324.0,0.0003614,2]
[398173806,1765416655889,-168.0,0.00036188,2]
[398173807,1765416655904,-956.13133032,0.00036348,2]
[398173808,1765416655915,-229.62715825,0.00036421,2]
[398173809,1765416655928,-344.91441206,0.00036421,2]
[398173810,1765416655942,-324.0,0.00036453,7]
[398173811,1765416655955,-168.0,0.00036563,2]
[398173812,1765416655968,-623.36,0.000366,14]
[398173813,1765416655981,-461.0,0.00036658,2]
[398173814,1765416655995,-3865.0,0.0003671,7]
[398173815,1765416656007,-223.0315306,0.00036749,2]
[398173816,1765416656020,-324.0,0.00036819,120]
[398173817,1765416656032,-152.56104171,0.00036918,25]
[398173818,1765416656045,-598.0,0.00036949,2]
[398173819,1765416656057,-150.0,0.00036962,7]
[398173820,1765416656070,-150.0,0.00036962,7]
[398173821,1765416656084,-150.0,0.00036962,7]
[398173822,1765416656099,-297.79956768,0.00036962,7]
[398173823,1765416656112,-150.0,0.00036962,7]
[398173824,1765416656125,-150.0,0.00036962,7]
[398173825,1765416656137,-150.0,0.00036962,7]
[398173826,1765416656150,-150.0,0.00036962,7]
[398173827,1765416656163,-150.0,0.00036962,7]
[398173828,1765416656175,-150.0,0.00036962,7]
[398173829,1765416656189,-150.0,0.00036962,7]
[398173830,1765416656202,-150.0,0.00036962,7]
[398173831,1765416656215,-150.0,0.00036962,7]
[398173832,1765416656228,-150.0886242,0.00036962,7]
[398173833,1765416656242,-150.0,0.00036962,7]
[398173834,1765416656253,-150.0,0.00036962,7]
[398173835,1765416656265,-168.0,0.0003697,2]
[398173836,1765416656277,-150.0,0.00037076,7]
[398173837,1765416656290,-691.61,0.000371,30]
[398173838,1765416656302,-165.52,0.000371,14]
[398173839,1765416656315,-168.0,0.00037107,2]
[398173840,1765416656328,-150.0,0.00037178,7]
[398173841,1765416656340,-150.0,0.0003719,7]
[398173842,1765416656352,-150.0,0.00037203,7]
[398173843,1765416656364,-150.0,0.00037235,7]
[398173844,1765416656378,-150.0,0.00037235,7]
[398173845,1765416656391,-150.0,0.00037304,7]
[398173846,1765416656403,-150.0,0.00037304,7]
[398173847,1765416656415,-150.0,0.00037304,7]
[398173848,1765416656429,-150.0,0.00037372,7]
[398173849,1765416656441,-150.0,0.00037394,7]
[398173850,1765416656452,-641.64,0.000374,2]
[398173851,1765416656465,-150.0,0.00037418,7]
[398173852,1765416656476,-150.0,0.00037445,7]
[398173853,1765416656488,-168.0,0.00037471,2]
[398173854,1765416656500,-150.0,0.00037509,7]
[398173855,1765416656511,-150.0,0.00037509,7]
[398173856,1765416656523,-150.0,0.00037532,7]
[398173857,1765416656536,-150.0,0.0003761,7]
[398173858,1765416656547,-150.0,0.00037646,7]
[398173859,1765416656559,-150.0,0.00037646,7]
[398173860,1765416656571,-150.0,0.00037646,7]
[398173861,1765416656582,-150.0,0.00037686,7]
[398173862,1765416656595,-168.0,0.00037714,2]
[398173863,1765416656606,-150.0,0.0003776,7]
[398173864,1765416656617,-150.0,0.00037783,7]
[398173865,1765416656631,-150.0,0.00037783,7]
[398173866,1765416656642,-150.0,0.00037783,7]
[398173867,1765416656654,-150.0,0.00037783,7]
[398173868,1765416656668,-150.0,0.00037783,7]
[398173869,1765416656680,-357.6762453,0.0003779,2]
[398173870,1765416656691,-150.0,0.00037826,7]
[398173871,1765416656703,-150.0,0.00037874,7]
[398173872,1765416656714,-156.7335532,0.00037913,7]
[398173873,1765416656726,-150.0,0.00037928,7]
[398173874,1765416656738,-150.0,0.00037988,7]
[398173875,1765416656749,-150.0,0.00037988,7]
[398173876,1765416656762,-150.0,0.00037988,7]
[398173877,1765416656773,-150.0,0.00037988,7]
[398173878,1765416656786,-150.0,0.00038042,7]
[398173879,1765416656799,-150.0,0.00038057,7]
[398173880,1765416656812,-150.0,0.00038057,7]
[398173881,1765416656825,-150.0,0.00038102,7]
[398173882,1765416656838,-150.0,0.0003817,7]
[398173883,1765416656850,-150.0,0.00038194,7]
[398173884,1765416656858,-150.0,0.00038217,7]
[398173885,1765416656867,-150.0,0.00038259,7]
[398173886,1765416657057,-150.0,0.00038331,7]
[398173887,1765416657078,-150.0,0.00038331,7]
[398173888,1765416657091,-150.0,0.00038331,7]
[398173889,1765416657106,-150.0,0.00038331,7]
[398173890,1765416657115,-150.0,0.00038331,7]
[398173891,1765416657125,-600.0,0.00038356,30]
[398173892,1765416657134,-197.44197135,0.00038378,30]
[398173893,1765416657145,-691.61,0.000384,30]
[398173894,1765416657154,-1000.0,0.000384,7]
[398173895,1765416657163,-150.0,0.00038411,7]
[398173896,1765416657173,-150.0,0.00038445,7]
[398173897,1765416657184,-150.0,0.00038475,7]
[398173898,1765416657193,-23827.68743119,0.000385,30]
[398173899,1765416657202,-150.0,0.00038559,7]
[398173900,1765416657211,-150.0,0.00038604,7]
[398173901,1765416657220,-150.0,0.00038604,7]
[398173902,1765416657228,-150.0,0.00038604,7]
[398173903,1765416657238,-150.0,0.00038604,7]
[398173904,1765416657248,-150.0,0.00038604,7]
[398173905,1765416657256,-500.0,0.00038632,60]
[398173906,1765416657265,-500.0,0.00038632,60]
[398173907,1765416657275,-500.0,0.00038632,60]
[398173908,1765416657286,-11968.64,0.00038633,2]
[398173909,1765416657295,-150.0,0.00038653,7]
[398173910,1765416657304,-150.0,0.00038673,7]
[398173911,1765416657313,-150.0,0.00038673,7]
[398173912,1765416657322,-150.0,0.00038673,7]
[398173913,1765416657332,-150.0,0.00038691,7]
[398173914,1765416657342,-641.64,0.000387,30]
[398173915,1765416657351,-188.98,0.00038729,120]
[398173916,1765416657361,-150.0,0.00038787,7]
[398173917,1765416657372,-48773.54660252,0.000388,7]
[398173918,1765416657380,-150.0,0.00038878,7]
[398173919,1765416657390,-150.0,0.00038878,7]
[398173920,1765416657399,-2206.98713899,0.0003888,2]
[398173921,1765416657409,-150.0,0.00038894,7]
[398173922,1765416657418,-150.0,0.00038901,7]
[398173923,1765416657427,-600.0,0.00038904,30]
[398173924,1765416657436,-150.0,0.00038907,7]
[398173925,1765416657445,-150.0,0.00039015,7]
[398173926,1765416657454,-150.0,0.00039015,7]
[398173927,1765416657463,-150.0,0.00039015,7]
[398173928,1765416657472,-150.0,0.00039015,7]
[398173929,1765416657482,-150.0,0.00039015,7]
[398173930,1765416657492,-253.0,0.0003902,2]
[398173931,1765416657501,-1793.258,0.0003902,2]
[398173932,1765416657510,-613.095,0.0003902,2]
[398173933,1765416657519,-4764.0,0.0003902,2]
[398173934,1765416657527,-1609.814,0.0003902,2]
[398173935,1765416657537,-564.964,0.0003902,2]
[398173936,1765416657546,-41133.71109637,0.00039054,5]
[398173937,1765416657556,-1358.54435731,0.00039072,5]
[398173938,1765416657565,-859.95,0.00039083,5]
[398173939,1765416657574,-204.03,0.00039087,2]
[398173940,1765416657585,-1971.06,0.00039098,2]
[398173941,1765416657595,-150.0,0.00039123,7]
[398173942,1765416657604,-150.0,0.00039129,7]
[398173943,1765416657613,-150.0,0.00039136,7]
[398173944,1765416657623,-150.0,0.00039152,7]
[398173945,1765416657632,-150.0,0.00039152,7]
[398173946,1765416657641,-370.91026638,0.00039159,2]
[398173947,1765416657650,-1000.0,0.00039213,14]
[398173948,1765416657660,-150.0,0.00039243,7]
[398173949,1765416657669,-150.0,0.00039339,7]
[398173950,1765416657680,-150.0,0.00039357,7]
[398173951,1765416657689,-150.0,0.00039357,7]
[398173952,1765416657699,-150.0,0.00039357,7]
[398173953,1765416657708,-150.0,0.00039377,7]
[398173954,1765416657716,-150.0,0.00039426,7]
[398173955,1765416657725,-150.0,0.00039426,7]
[398173956,1765416657734,-150.0,0.00039426,7]
[398173957,1765416657744,-150.0,0.00039426,7]
[398173958,1765416657752,-150.0,0.00039426,7]
[398173959,1765416657761,-600.0,0.00039452,30]
[398173960,1765416657771,-150.0,0.00039471,7]
[398173961,1765416657780,-271.12489126,0.00039488,2]
[398173962,1765416657790,-500.0,0.00039499,30]
[398173963,1765416657800,-150.0,0.00039555,7]
[398173964,1765416657809,-150.0,0.00039585,7]
[398173965,1765416657818,-2206.98713899,0.00039586,2]
[398173966,1765416657827,-150.0,0.00039619,7]
[398173967,1765416657836,-150.0,0.000397,7]
[398173968,1765416657846,-150.0,0.000397,7]
[398173969,1765416657854,-150.0,0.000397,7]
[398173970,1765416657863,-150.0,0.000397,7]
[398173971,1765416657873,-150.0,0.000397,7]
[398173972,1765416657882,-150.0,0.00039772,7]
[398173973,1765416657892,-150.0,0.00039814,7]
[398173974,1765416657901,-150.0,0.00039836,7]
[398173975,1765416657910,-150.0,0.00039861,7]
[398173976,1765416657919,-902.749,0.00039899,2]
[398173977,1765416657928,-1000.0,0.000399,2]
[398173978,1765416657936,-150.0,0.00039928,7]
[398173979,1765416657945,-150.0,0.00039973,7]
[398173980,1765416657954,-150.0,0.00039973,7]
[398173981,1765416657963,-150.0,0.00039988,7]
[398173982,1765416657973,-600.0,0.0004,30]
[398173983,1765416657982,-1000.0,0.0004,120]
[398173984,1765416657991,-3385.26243861,0.0004,100]
[398173985,1765416658000,-2499.98,0.0004,120]
[398173986,1765416658009,-2500.0,0.0004,120]
[398173987,1765416658018,-271.02,0.0004,120]
[398173988,1765416658028,-310.92,0.0004,120]
[398173989,1765416658037,-639.9,0.0004,120]
[398173990,1765416658046,-238.3,0.0004,120]
[398173991,1765416658055,-563.4,0.0004,120]
[398173992,1765416658064,-8382.88,0.00040004,2]
[398173993,1765416658073,-150.0,0.00040042,7]
[398173994,1765416658083,-150.0,0.00040042,7]
[398173995,1765416658092,-150.0,0.00040042,7]
[398173996,1765416658101,-150.0,0.00040042,7]
[398173997,1765416658113,-150.0,0.00040055,30]
[398173998,1765416658123,-2701.20658623,0.00040055,30]
[398173999,1765416658132,-150.0,0.00040102,7]
[398174000,1765416658142,-150.0,0.00040156,7]
[398174001,1765416658153,-150.0,0.00040204,7]
[398174002,1765416658162,-150.0,0.00040247,7]
[398174003,1765416658171,-150.0,0.00040247,7]
[398174004,1765416658182,-150.0,0.00040247,7]
[398174005,1765416658191,-150.0,0.00040247,7]
[398174006,1765416658200,-150.0,0.00040247,7]
[398174007,1765416658209,-150.0,0.0004027,7]
[398174008,1765416658218,-2206.98713899,0.00040292,15]
[398174009,1765416658227,-150.0,0.00040344,7]
[398174010,1765416658237,-150.0,0.00040384,7]
[398174011,1765416658247,-150.0,0.00040384,7]
[398174012,1765416658257,-150.0,0.00040384,7]
[398174013,1765416658275,-150.0,0.0004042,7]
[398174014,1765416658286,-5800.0,0.00040444,14]
[398174015,1765416658295,-1600.0,0.0004045,120]
[398174016,1765416658306,-5800.0,0.00040453,14]
[398174017,1765416658314,-5800.0,0.00040461,14]
[398174018,1765416658324,-5800.0,0.0004047,14]
[398174019,1765416658333,-5800.0,0.00040478,14]
[398174020,1765416658343,-5800.0,0.00040486,14]
[398174021,1765416658353,-5800.0,0.00040495,14]
[398174022,1765416658362,-150.0,0.00040498,7]
[398174023,1765416658373,-2500.0,0.000405,120]
[398174024,1765416658382,-5800.0,0.00040504,14]
[398174025,1765416658393,-5800.0,0.00040512,14]
[398174026,1765416658401,-5800.0,0.00040521,14]
[398174027,1765416658412,-150.0,0.00040521,7]
[398174028,1765416658421,-150.0,0.00040521,7]
[398174029,1765416658430,-474.97625277,0.00040528,2]
[398174030,1765416658440,-5800.0,0.00040529,14]
[398174031,1765416658449,-600.0,0.00040548,30]
[398174032,1765416658458,-150.0,0.00040585,7]
[398174033,1765416658468,-392.8,0.000406,120]
[398174034,1765416658477,-150.0,0.00040612,7]
[398174035,1765416658487,-150.0,0.00040636,7]